bitfinex-derivatives/quotes_BTCF0:USTF0_20241020
["timestamp","ask_amount","ask_price","bid_price","bid_amount"]
[1729416403146,0.073079,68422.0,68421.0,0.39334004]
[1729416404851,0.073075,68426.0,68425.0,0.073075]
[1729416405053,0.40015082,68431.0,68425.0,0.10293152]
[1729416405054,0.00076,68431.0,68425.0,0.10293152]
[1729416405268,0.433866,68435.0,68433.0,0.073067]
[1729416405473,0.433866,68435.0,68433.0,0.13153758]
[1729416405675,0.433866,68435.0,68434.0,0.21849123]
[1729416406057,0.433866,68435.0,68434.0,0.27696181]
[1729416406261,0.67521263,68435.0,68434.0,0.21849123]
[1729416406574,0.51450948,68435.0,68434.0,0.21849123]
[1729416406762,0.44144348,68435.0,68434.0,0.21102736]
[1729416406965,0.44144348,68435.0,68434.0,0.073066]
[1729416407165,0.44144348,68435.0,68434.0,0.29214594]
[1729416413272,0.3608,68435.0,68434.0,0.29214594]
[1729416414280,0.073063,68437.0,68434.0,0.21907994]
[1729416414473,0.073063,68437.0,68436.0,0.04373436]
[1729416414876,0.073063,68437.0,68436.0,0.26300627]
[1729416415177,0.073063,68437.0,68436.0,0.21927191]
[1729416415381,0.073063,68437.0,68436.0,0.26300627]
[1729416416082,0.073063,68437.0,68436.0,0.21927191]
[1729416418477,0.073063,68437.0,68436.0,0.29233591]
[1729416428379,0.15369842,68437.0,68436.0,0.29233591]
[1729416428582,0.15369842,68437.0,68436.0,0.18397759]
[1729416428890,0.073063,68437.0,68436.0,0.18397759]
[1729416429083,0.10884638,68437.0,68436.0,0.18397759]
[1729416429388,0.15369842,68437.0,68436.0,0.18397759]
[1729416429782,0.08063542,68437.0,68436.0,0.18397759]
[1729416435290,0.08063538,68437.0,68436.0,0.18397759]
[1729416436384,0.155861,68439.0,68436.0,0.28738772]
[1729416436580,0.155861,68439.0,68437.0,0.17652055]
[1729416436780,0.155861,68439.0,68438.0,0.07311042]
[1729416436980,0.155861,68439.0,68438.0,0.29194464]
[1729416437685,0.155861,68439.0,68438.0,0.21883422]
[1729416437986,0.155861,68439.0,68437.0,0.29324078]
[1729416438189,0.155861,68439.0,68437.0,0.36630378]
[1729416438390,0.155861,68439.0,68437.0,0.14617342]
[1729416438784,0.155861,68439.0,68438.0,0.21905054]
[1729416441293,0.155861,68439.0,68438.0,0.29216096]
[1729416441590,0.155861,68439.0,68438.0,0.21905054]
[1729416443291,0.23649633,68439.0,68438.0,0.21905054]
[1729416444994,0.23649619,68439.0,68438.0,0.21905054]
[1729416446094,0.23649619,68439.0,68438.0,0.18746075]
[1729416446586,0.23649619,68439.0,68438.0,0.073062]
[1729416446787,0.23649619,68439.0,68438.0,0.29229069]
[1729416449799,0.23649554,68439.0,68438.0,0.29229069]
[1729416451288,0.155861,68439.0,68438.0,0.52050031]
[1729416451486,0.155861,68439.0,68438.0,0.39637636]
[1729416451882,0.155861,68439.0,68438.0,0.52046192]
[1729416452087,0.155861,68439.0,68438.0,0.39637636]
[1729416456092,0.155861,68439.0,68438.0,0.520447]
[1729416458102,0.155861,68439.0,68438.0,0.39637636]
[1729416458493,0.23649457,68439.0,68438.0,0.17530791]
[1729416459385,0.23649457,68439.0,68438.0,0.24836991]
[1729416464390,0.15369457,68439.0,68438.0,0.24836991]
[1729416466401,0.073061,68439.0,68438.0,0.72375607]
[1729416467096,0.073061,68439.0,68438.0,0.47735438]
[1729416470503,0.073061,68439.0,68438.0,0.57970489]
[1729416471492,0.073061,68439.0,68438.0,0.47735438]
[1729416473006,0.073061,68439.0,68438.0,0.57970489]
[1729416473211,0.073061,68439.0,68438.0,0.47735438]
[1729416473394,0.10884383,68439.0,68438.0,0.24836991]
[1729416473600,0.10884383,68439.0,68438.0,0.13138625]
[1729416473601,0.15369518,68439.0,68438.0,0.13138625]
[1729416473907,0.17967512,68439.0,68438.0,0.13138625]
[1729416474104,0.17967511,68439.0,68438.0,0.13138625]
[1729416478726,0.17967536,68439.0,68438.0,0.13138625]
[1729416478924,0.17967536,68439.0,68438.0,0.05832425]
[1729416480229,0.15369542,68439.0,68438.0,0.05832425]
[1729416481530,0.073061,68439.0,68438.0,0.28932525]
[1729416484321,0.073061,68439.0,68438.0,0.36238725]
[1729416485028,0.073061,68439.0,68438.0,0.50820086]
[1729416488428,0.073061,68439.0,68438.0,0.23676817]
[1729416491924,0.073061,68439.0,68438.0,0.23675146]
[1729416496531,0.073061,68439.0,68438.0,0.04133889]
[1729416496532,0.15369514,68439.0,68438.0,0.04133889]
[1729416496732,0.15369514,68439.0,68438.0,0.26022572]
[1729416503353,0.15369443,68439.0,68438.0,0.26022572]
[1729416503648,0.3608,68441.0,68438.0,0.7415801]
[1729416503839,0.3608,68441.0,68439.0,0.2323221]
[1729416504145,0.3608,68441.0,68440.0,0.45154016]
[1729416504551,0.3608,68441.0,68440.0,0.2323221]
[1729416506453,0.3608,68441.0,68440.0,0.33467638]
[1729416506949,0.3608,68441.0,68440.0,0.40773638]
[1729416509240,0.3608,68441.0,68440.0,0.3053821]
[1729416510446,0.433859,68441.0,68440.0,0.3053821]
[1729416511545,0.51449325,68441.0,68436.0,0.0385]
[1729416511747,0.13304274,68440.0,68436.0,0.0385]
[1729416512050,0.08063425,68439.0,68438.0,0.073062]
[1729416512446,0.08063425,68439.0,68438.0,0.29319868]
[1729416518666,0.073059,68441.0,68438.0,0.67207027]
[1729416518857,0.073059,68441.0,68439.0,0.48122462]
[1729416519058,0.073059,68441.0,68440.0,0.23266086]
[1729416519252,0.073059,68441.0,68440.0,0.45109578]
[1729416519462,0.073059,68441.0,68440.0,0.7003702]
[1729416524563,0.433856,68444.0,68443.0,0.073057]
[1729416524764,0.433856,68444.0,68443.0,0.30571786]
[1729416526379,0.433856,68444.0,68443.0,0.30560343]
[1729416526675,0.433856,68444.0,68441.0,0.10235303]
[1729416526676,0.51448795,68444.0,68441.0,0.10235303]
[1729416526865,0.20609595,68443.0,68441.0,0.10235303]
[1729416527068,0.08063195,68442.0,68441.0,0.10235303]
[1729416527474,0.08063195,68442.0,68441.0,0.32033369]
[1729416529177,0.15368995,68442.0,68441.0,0.32033369]
[1729416531172,0.15368984,68442.0,68441.0,0.32033369]
[1729416533582,0.073058,68442.0,68441.0,0.50001322]
[1729416536282,0.073058,68442.0,68441.0,0.39766019]
[1729416544589,0.073058,68442.0,68441.0,0.39764774]
[1729416547191,0.073058,68442.0,68441.0,0.39765117]
[1729416548704,0.10883979,68442.0,68441.0,0.10100039]
[1729416549001,0.15368984,68442.0,68441.0,0.10100039]
[1729416554406,0.15369018,68442.0,68441.0,0.10100039]
[1729416555708,0.3608,68444.0,68441.0,0.48523638]
[1729416555904,0.3608,68444.0,68442.0,0.48658818]
[1729416556204,0.433856,68444.0,68443.0,0.23553283]
[1729416559306,0.3608,68444.0,68443.0,0.23466007]
[1729416559609,0.433856,68444.0,68443.0,0.23466007]
[1729416563502,0.433856,68444.0,68443.0,0.2346697]
[1729416563705,0.44143172,68444.0,68438.0,0.11695927]
[1729416563905,0.073059,68441.0,68438.0,0.14294841]
[1729416564112,0.08063172,68440.0,68439.0,0.29141933]
[1729416564406,0.08063182,68440.0,68439.0,0.29141933]
[1729416569315,0.08063168,68440.0,68439.0,0.29141933]
[1729416570815,0.073059,68441.0,68439.0,0.48693811]
[1729416571015,0.073059,68441.0,68440.0,0.10779095]
[1729416571413,0.073059,68441.0,68440.0,0.3265219]
[1729416584117,0.073059,68441.0,68440.0,0.32513563]
[1729416585924,0.15369108,68441.0,68440.0,0.10175034]
[1729416588927,0.15369137,68441.0,68440.0,0.10175034]
[1729416593730,0.073059,68441.0,68440.0,0.48526641]
[1729416594032,0.3608,68445.0,68440.0,0.48523721]
[1729416594331,0.073057,68443.0,68442.0,0.10235502]
[1729416594630,0.073057,68443.0,68442.0,0.48584189]
[1729416594831,0.073057,68443.0,68442.0,0.48509163]
[1729416595019,0.073057,68443.0,68442.0,0.33742648]
[1729416595224,0.073057,68443.0,68442.0,0.48511425]
[1729416596029,0.073057,68443.0,68442.0,0.33742648]
[1729416598537,0.073057,68443.0,68442.0,0.48509972]
[1729416599628,0.073057,68443.0,68442.0,0.48388884]
[1729416600031,0.073057,68443.0,68442.0,0.33622929]
[1729416600733,0.15368901,68443.0,68442.0,0.10235502]
[1729416602237,0.19853909,68443.0,68442.0,0.10235502]
[1729416602444,0.15368895,68443.0,68442.0,0.10235502]
[1729416607142,0.073057,68443.0,68442.0,0.10235502]
[1729416607444,0.073057,68443.0,68440.0,0.07306]
[1729416607445,0.073058,68442.0,68440.0,0.07306]
[1729416607634,0.08063208,68441.0,68440.0,0.07306]
[1729416608141,0.08063208,68441.0,68440.0,0.29303879]
[1729416608839,0.073058,68442.0,68440.0,0.67486877]
[1729416609144,0.073058,68442.0,68441.0,0.38182998]
[1729416609439,0.073058,68442.0,68441.0,0.60001471]
[1729416609839,0.073058,68442.0,68441.0,0.45223521]
[1729416612242,0.073058,68442.0,68441.0,0.45218995]
[1729416612439,0.073058,68442.0,68441.0,0.59992786]
[1729416615838,0.1088399,68442.0,68441.0,0.10120413]
[1729416616149,0.15369009,68442.0,68441.0,0.10120413]
[1729416621747,0.15368943,68442.0,68441.0,0.10120413]
[1729416623536,0.073058,68442.0,68441.0,0.10120413]
[1729416623740,0.10883966,68442.0,68441.0,0.10120413]
[1729416623946,0.3608,68445.0,68441.0,0.48589706]
[1729416624249,0.3608,68445.0,68442.0,0.48701833]
[1729416624451,0.3608,68445.0,68443.0,0.23581095]
[1729416624651,0.433855,68445.0,68444.0,0.23581095]
[1729416626750,0.433855,68445.0,68444.0,0.23497707]
[1729416630962,0.073056,68444.0,68443.0,0.07308543]
[1729416632148,0.073056,68444.0,68443.0,0.17913363]
[1729416632350,0.073056,68444.0,68443.0,0.07308543]
[1729416638848,0.073056,68444.0,68439.0,0.08770252]
[1729416638849,0.073059,68441.0,68437.0,0.073063]
[1729416639048,0.23390126,68441.0,68435.0,0.08832]
[1729416639268,0.08063244,68440.0,68439.0,0.21944337]
[1729416639459,0.08063244,68440.0,68438.0,0.29250537]
[1729416639658,0.08063244,68439.0,68438.0,0.073062]
[1729416640063,0.08063244,68439.0,68438.0,0.29262559]
[1729416641153,0.23390126,68441.0,68438.0,0.29262559]
[1729416641357,0.08063251,68440.0,68438.0,0.29262559]
[1729416641574,0.08063251,68439.0,68438.0,0.29262559]
[1729416645866,0.23390126,68441.0,68440.0,0.07306]
[1729416646171,0.23390126,68441.0,68440.0,0.77449767]
[1729416648060,0.073059,68441.0,68440.0,0.77449767]
[1729416648257,0.073059,68441.0,68440.0,0.52545644]
[1729416650961,0.073059,68441.0,68440.0,0.52548334]
[1729416653964,0.10884082,68441.0,68440.0,0.2930593]
[1729416654153,0.15369091,68441.0,68440.0,0.2930593]
[1729416655654,0.073059,68441.0,68440.0,0.2930593]
[1729416656060,0.15369091,68441.0,68440.0,0.2930593]
[1729416657065,0.15369091,68441.0,68440.0,0.20032576]
[1729416657573,0.15369091,68441.0,68440.0,0.27338576]
[1729416660464,0.1536904,68441.0,68440.0,0.27338576]
[1729416660867,0.1536904,68441.0,68440.0,0.50724399]
[1729416660868,0.073059,68441.0,68440.0,0.50724399]
[1729416661070,0.0347,68443.0,68440.0,0.50724399]
[1729416661267,0.107757,68443.0,68441.0,0.23385823]
[1729416661469,0.107757,68443.0,68442.0,0.23385823]
[1729416661665,0.107757,68443.0,68442.0,0.45194009]
[1729416663963,0.107757,68443.0,68442.0,0.45111777]
[1729416668869,0.107757,68443.0,68442.0,0.45107309]
[1729416669073,0.107757,68443.0,68442.0,0.21808186]
[1729416675986,0.18839014,68443.0,68442.0,0.08216304]
[1729416678678,0.18838928,68443.0,68442.0,0.08216304]
[1729416683283,0.18838893,68443.0,68442.0,0.08216304]
[1729416684088,0.107757,68443.0,68442.0,0.31723599]
[1729416685990,0.107757,68443.0,68442.0,0.23507295]
[1729416686189,0.107757,68443.0,68442.0,0.23539241]
[1729416686389,0.707757,68443.0,68442.0,0.10725988]
[1729416686604,0.107757,68443.0,68442.0,0.10725988]
[1729416688188,0.107757,68443.0,68442.0,0.10752921]
[1729416688493,0.107757,68443.0,68442.0,0.18056351]
[1729416689387,0.073058,68442.0,68441.0,0.0730343]
[1729416689590,0.073058,68442.0,68441.0,0.10754565]
[1729416690482,0.433858,68442.0,68441.0,0.10754565]
[1729416690893,0.433858,68442.0,68441.0,0.18055827]
[1729416691092,0.433858,68442.0,68441.0,0.10754565]
[1729416691295,0.433858,68442.0,68431.0,0.073069]
[1729416691296,0.073065,68435.0,68431.0,0.073069]
[1729416691601,0.08064175,68434.0,68432.0,0.22002138]
[1729416691891,0.08064175,68433.0,68432.0,0.22002138]
[1729416692191,0.073065,68435.0,68434.0,0.073066]
[1729416692393,0.073061,68440.0,68439.0,0.073061]
[1729416694484,0.073062,68439.0,68435.0,0.073065]
[1729416694888,0.073062,68439.0,68430.0,0.3608]
[1729416694889,0.08063626,68438.0,68436.0,0.29140147]
[1729416695195,0.073062,68439.0,68437.0,0.0342]
[1729416695503,0.08063591,68438.0,68437.0,0.25448135]
[1729416697393,0.15369791,68438.0,68437.0,0.25448135]
[1729416697789,0.15369778,68438.0,68437.0,0.25448135]
[1729416699196,0.15369778,68438.0,68437.0,0.36171481]
[1729416699197,0.073062,68438.0,68437.0,0.36171481]
[1729416700991,0.073062,68438.0,68437.0,0.38864572]
[1729416702393,0.073062,68438.0,68437.0,0.47636888]
[1729416702701,0.073062,68438.0,68437.0,0.38863433]
[1729416703898,0.073062,68438.0,68437.0,0.36170342]
[1729416706399,0.10884571,68438.0,68437.0,0.25448135]
[1729416708703,0.10884571,68438.0,68437.0,0.28076612]
[1729416710601,0.15369681,68438.0,68437.0,0.28076612]
[1729416712303,0.15369697,68438.0,68437.0,0.28076612]
[1729416713619,0.15369697,68438.0,68437.0,0.35382912]
[1729416713910,0.03578318,68438.0,68437.0,0.35382912]
[1729416714308,0.07306,68440.0,68438.0,0.073062]
[1729416714506,0.07306,68440.0,68439.0,0.23489596]
[1729416714706,0.07306,68440.0,68439.0,0.45355474]
[1729416715008,0.07306,68440.0,68439.0,0.52661574]
[1729416717508,0.76086431,68446.0,68439.0,0.45355474]
[1729416717703,0.76086431,68446.0,68440.0,0.2346844]
[1729416717904,0.83391831,68446.0,68445.0,0.073055]
[1729416718109,0.78274052,68446.0,68445.0,0.30773854]
[1729416718309,0.78274052,68446.0,68445.0,0.52610073]
[1729416720516,0.42194052,68446.0,68445.0,0.52610073]
[1729416721013,0.42194052,68446.0,68445.0,0.52489699]
[1729416721425,0.42194052,68446.0,68445.0,0.39793356]
[1729416726820,0.42194052,68446.0,68445.0,0.3643927]
[1729416727618,0.42194052,68446.0,68445.0,0.4708623]
[1729416728510,0.42194052,68446.0,68445.0,0.3643927]
[1729416728814,0.073054,68446.0,68445.0,0.47087316]
[1729416729413,0.10883366,68446.0,68445.0,0.29141719]
[1729416729819,0.10883366,68446.0,68445.0,0.21836219]
[1729416730123,0.03578046,68446.0,68440.0,0.29089563]
[1729416730312,0.073056,68444.0,68440.0,0.29089563]
[1729416730623,0.03578046,68443.0,68440.0,0.07306]
[1729416730813,0.03578046,68442.0,68441.0,0.29234122]
[1729416731210,0.03578046,68442.0,68441.0,0.073059]
[1729416731515,0.03578046,68442.0,68441.0,0.29187872]
[1729416736023,0.10883846,68442.0,68441.0,0.21881972]
[1729416736419,0.0353,68444.0,68438.0,0.29203329]
[1729416736624,0.07306,68440.0,68438.0,0.14603751]
[1729416736922,0.07306,68440.0,68439.0,0.21905778]
[1729416737625,0.07306,68440.0,68439.0,0.29211878]
[1729416741327,0.07306,68440.0,68439.0,0.36509429]
[1729416742427,0.07306,68440.0,68439.0,0.47170698]
[1729416743434,0.07306,68440.0,68439.0,0.39873147]
[1729416743922,0.07306,68440.0,68439.0,0.39875426]
[1729416744323,0.1088406,68440.0,68439.0,0.29211878]
[1729416744519,0.15368915,68440.0,68439.0,0.29211878]
[1729416746727,0.15368915,68440.0,68439.0,0.17514242]
[1729416749421,0.15368927,68440.0,68439.0,0.17514242]
[1729416751339,0.07306,68440.0,68439.0,0.67637188]
[1729416751529,0.01331652,68444.0,68439.0,0.67637188]
[1729416751734,0.08637252,68444.0,68443.0,0.10226867]
[1729416752033,0.08637252,68444.0,68443.0,0.10744994]
[1729416757037,0.08637252,68444.0,68443.0,0.23468561]
[1729416759026,0.08637252,68444.0,68443.0,0.23410011]
[1729416759436,0.08637252,68444.0,68443.0,0.17985638]
[1729416763731,0.08637252,68444.0,68443.0,0.17986656]
[1729416766536,0.1670033,68444.0,68441.0,0.073058]
[1729416766741,0.08063078,68443.0,68441.0,0.073058]
[1729416766937,0.08063078,68442.0,68441.0,0.073058]
[1729416767253,0.08063078,68442.0,68441.0,0.2928165]
[1729416768751,0.08063077,68442.0,68441.0,0.2928165]
[1729416771943,0.15368877,68442.0,68441.0,0.2928165]
[1729416774553,0.073058,68442.0,68441.0,0.39961269]
[1729416778452,0.073058,68442.0,68441.0,0.39963891]
[1729416778955,0.073058,68442.0,68441.0,0.47269743]
[1729416781440,0.15368867,68442.0,68441.0,0.2928165]
[1729416786953,0.15368797,68442.0,68441.0,0.19752796]
[1729416787556,0.15368797,68442.0,68441.0,0.27058596]
[1729416789550,0.073058,68442.0,68441.0,0.50231771]
[1729416792557,0.073058,68442.0,68441.0,0.37668734]
[1729416792946,0.073058,68442.0,68441.0,0.50315923]
[1729416793351,0.073058,68442.0,68441.0,0.37668734]
[1729416796360,0.433858,68442.0,68441.0,0.37668734]
[1729416796561,0.51449103,68442.0,68441.0,0.27058596]
[1729416801470,0.51449004,68442.0,68441.0,0.27058596]
[1729416801665,0.5668971,68442.0,68441.0,0.27058596]
[1729416803568,0.433858,68442.0,68441.0,0.5032891]
[1729416803869,0.3608,68442.0,68441.0,0.5032891]
[1729416804464,0.433858,68442.0,68441.0,0.5032891]
[1729416806365,0.433858,68442.0,68441.0,0.50246933]
[1729416807162,0.433858,68442.0,68441.0,0.76603819]
[1729416807666,0.073058,68442.0,68441.0,0.76603819]
[1729416807866,0.073058,68442.0,68441.0,0.51739107]
[1729416811176,0.073058,68442.0,68441.0,0.5173427]
[1729416812073,0.073058,68442.0,68441.0,0.51734032]
[1729416812274,0.073058,68442.0,68441.0,0.39127369]
[1729416816482,0.073058,68442.0,68441.0,0.51733879]
[1729416816686,0.073058,68442.0,68441.0,0.39127369]
[1729416818682,0.10883972,68442.0,68441.0,0.16852767]
[1729416818988,0.15368968,68442.0,68441.0,0.16852767]
[1729416820878,0.15368961,68442.0,68441.0,0.16852767]
[1729416825784,0.15368943,68442.0,68441.0,0.16852767]
[1729416826677,0.073058,68442.0,68441.0,0.40195089]
[1729416829883,0.073058,68442.0,68441.0,0.54905917]
[1729416830688,0.073058,68442.0,68441.0,0.65097918]
[1729416831785,0.073058,68442.0,68441.0,0.57792118]
[1729416833588,0.02187874,68442.0,68441.0,0.57792118]
[1729416833788,0.08063246,68442.0,68439.0,0.05154851]
[1729416833987,0.08063246,68441.0,68439.0,0.05154851]
[1729416834194,0.15369246,68440.0,68439.0,0.05154851]
[1729416834486,0.15369246,68440.0,68439.0,0.26978]
[1729416835480,0.15369167,68440.0,68439.0,0.26978]
[1729416840480,0.15369179,68440.0,68439.0,0.26978]
[1729416841696,0.15369179,68440.0,68439.0,0.50388408]
[1729416841697,0.07306,68440.0,68439.0,0.50388408]
[1729416843784,0.07306,68440.0,68439.0,0.50381117]
[1729416845089,0.07306,68440.0,68439.0,0.65156168]
[1729416847291,0.38718768,68446.0,68439.0,0.65156168]
[1729416847595,0.073058,68442.0,68441.0,0.10227279]
[1729416847787,0.073058,68442.0,68441.0,0.23403117]
[1729416848095,0.073058,68442.0,68441.0,0.45258816]
[1729416848597,0.073058,68442.0,68441.0,0.55486095]
[1729416848800,0.073058,68442.0,68441.0,0.3253249]
[1729416849096,0.073058,68442.0,68441.0,0.3983839]
[1729416851283,0.3608,68446.0,68443.0,0.073056]
[1729416851598,0.073055,68445.0,68443.0,0.14610531]
[1729416852782,0.3608,68446.0,68443.0,0.14610531]
[1729416852783,0.073056,68444.0,68443.0,0.14610531]
[1729416852987,0.073056,68444.0,68443.0,0.252537]
[1729416853303,0.073056,68444.0,68443.0,0.25252377]
[1729416854197,0.073056,68444.0,68443.0,0.14610531]
[1729416855497,0.073056,68444.0,68443.0,0.25250234]
[1729416855688,0.073056,68444.0,68443.0,0.14610531]
[1729416856297,0.073056,68444.0,68443.0,0.073056]
[1729416856490,0.073056,68444.0,68443.0,0.14610531]
[1729416856993,0.073056,68444.0,68443.0,0.073056]
[1729416856994,0.15368504,68444.0,68443.0,0.073056]
[1729416864007,0.3608,68446.0,68443.0,0.30623272]
[1729416864297,0.3608,68446.0,68444.0,0.23317672]
[1729416864298,0.073055,68445.0,68444.0,0.23317672]
[1729416868306,0.073055,68445.0,68444.0,0.23234141]
[1729416871898,0.0806296,68445.0,68437.0,0.06048477]
[1729416872106,0.1607866,68438.0,68437.0,0.13354777]
[1729416872304,0.2414162,68438.0,68437.0,0.13354777]
[1729416872503,0.2414162,68438.0,68437.0,0.35346402]
[1729416874207,0.0806296,68438.0,68437.0,0.35346402]
[1729416875608,0.2414162,68438.0,68437.0,0.35346402]
[1729416875807,0.1607866,68438.0,68437.0,0.35346402]
[1729416879015,0.073056,68444.0,68441.0,0.073059]
[1729416879211,0.073056,68444.0,68443.0,0.10226357]
[1729416879407,0.073056,68444.0,68443.0,0.33595069]
[1729416879618,0.073056,68444.0,68443.0,0.77675204]
[1729416879918,0.073056,68444.0,68443.0,0.62920947]
[1729416881218,0.073056,68444.0,68443.0,0.7767708]
[1729416882414,0.073056,68444.0,68443.0,0.5269459]
[1729416882717,0.073056,68444.0,68443.0,0.52695269]
[1729416886519,0.073056,68444.0,68443.0,0.52696854]
[1729416886905,0.073056,68444.0,68443.0,0.17628194]
[1729416886906,0.15368547,68444.0,68443.0,0.17628194]
[1729416887517,0.073056,68444.0,68443.0,0.17628194]
[1729416887715,0.10883674,68444.0,68443.0,0.17628194]
[1729416887915,0.15368547,68444.0,68443.0,0.17628194]
[1729416892317,0.1536851,68444.0,68443.0,0.17628194]
[1729416893922,0.073056,68444.0,68443.0,0.66116988]
[1729416894226,0.02674133,68447.0,68443.0,0.66116988]
[1729416894428,0.073055,68445.0,68444.0,0.23454056]
[1729416894820,0.073055,68445.0,68444.0,0.45330507]
[1729416897318,0.073055,68445.0,68444.0,0.4524819]
[1729416901116,0.073055,68445.0,68444.0,0.45244593]
[1729416901922,0.073055,68445.0,68444.0,0.21876451]
[1729416902417,0.073055,68445.0,68443.0,0.07305371]
[1729416902418,0.073056,68444.0,68443.0,0.29302473]
[1729416902617,0.073056,68444.0,68443.0,0.17966384]
[1729416902826,0.073056,68444.0,68443.0,0.39943611]
[1729416905636,0.073056,68444.0,68443.0,0.39944916]
[1729416908736,0.073056,68444.0,68443.0,0.32639545]
[1729416908936,0.073056,68444.0,68443.0,0.21977227]
[1729416908937,0.15368413,68444.0,68443.0,0.21977227]
[1729416909144,0.15368413,68444.0,68443.0,0.12028594]
[1729416909331,0.15368413,68444.0,68440.0,0.07306]
[1729416909332,0.073058,68442.0,68441.0,0.21999164]
[1729416909639,0.15368613,68442.0,68440.0,0.07306]
[1729416909839,0.08062813,68441.0,68440.0,0.07306]
[1729416910233,0.08062813,68441.0,68440.0,0.29188311]
[1729416911837,0.16082611,68441.0,68440.0,0.29188311]
[1729416912136,0.19660626,68441.0,68440.0,0.29188311]
[1729416912339,0.08062813,68441.0,68440.0,0.29188311]
[1729416914640,0.15368713,68441.0,68440.0,0.29188311]
[1729416915248,0.15368734,68441.0,68440.0,0.29188311]
[1729416917147,0.073059,68441.0,68440.0,0.29188311]
[1729416921443,0.3608,68447.0,68440.0,0.67581525]
[1729416921942,0.073058,68443.0,68440.0,0.67581525]
[1729416922341,0.073058,68443.0,68441.0,0.1279648]
[1729416922551,0.073058,68443.0,68441.0,0.10735647]
[1729416922852,0.073058,68443.0,68442.0,0.22019466]
[1729416923446,0.073058,68443.0,68442.0,0.45492738]
[1729416924041,0.08062823,68443.0,68442.0,0.22019466]
[1729416924439,0.1894664,68443.0,68442.0,0.22019466]
[1729416925941,0.1894664,68443.0,68442.0,0.29325266]
[1729416928353,0.10883819,68443.0,68442.0,0.29325266]
[1729416928546,0.03578019,68443.0,68442.0,0.29325266]
[1729416929545,0.08062635,68443.0,68442.0,0.29325266]
[1729416929752,0.11640504,68443.0,68442.0,0.29325266]
[1729416930351,0.07155888,68443.0,68442.0,0.29325266]
[1729416932244,0.03578019,68443.0,68442.0,0.3996031]
[1729416932753,0.3608,68447.0,68446.0,0.073053]
[1729416932945,0.07305,68450.0,68446.0,0.073053]
[1729416932946,0.07305,68450.0,68447.0,0.073051]
[1729416933247,0.07305,68450.0,68449.0,0.07305]
[1729416933636,0.07305,68450.0,68449.0,0.29163903]
[1729416934440,0.0366,68455.0,68450.0,0.073048]
[1729416934745,0.0366,68455.0,68453.0,0.05833696]
[1729416934746,0.073045,68454.0,68453.0,0.05833696]
[1729416935146,0.073045,68454.0,68453.0,0.27801242]
[1729416936347,0.073045,68454.0,68453.0,0.21967546]
[1729416936647,0.3608,68456.0,68452.0,0.21777377]
[1729416936848,0.3608,68456.0,68454.0,0.04374391]
[1729416937051,0.073044,68455.0,68454.0,0.04374391]
[1729416937548,0.073046,68454.0,68450.0,0.073048]
[1729416937747,0.3608,68456.0,68450.0,0.073048]
[1729416938049,0.073046,68453.0,68452.0,0.21808285]
[1729416938343,0.073046,68453.0,68447.0,0.0726]
[1729416938555,0.073046,68453.0,68452.0,0.2200999]
[1729416938934,0.073046,68453.0,68451.0,0.35146715]
[1729416939246,0.073046,68453.0,68447.0,0.0726]
[1729416939247,0.073046,68453.0,68452.0,0.39845965]
[1729416939448,0.073046,68453.0,68452.0,0.47135475]
[1729416939641,0.073046,68453.0,68452.0,0.25184858]
[1729416939840,0.073046,68453.0,68452.0,0.47135475]
[1729416940052,0.073046,68453.0,68452.0,0.39845965]
[1729416944444,0.073046,68453.0,68452.0,0.29255317]
[1729416945452,0.073046,68453.0,68452.0,0.39852427]
[1729416947145,0.10882242,68453.0,68452.0,0.17559045]
[1729416947345,0.15366574,68453.0,68452.0,0.24863745]
[1729416949661,0.073046,68453.0,68452.0,0.24863745]
[1729416950660,0.1536675,68453.0,68452.0,0.24863745]
[1729416954050,0.073046,68453.0,68452.0,0.30696214]
[1729416954756,0.073046,68453.0,68452.0,0.24863745]
[1729416961960,0.10882296,68453.0,68452.0,0.24863745]
[1729416962169,0.15366695,68453.0,68452.0,0.24863745]
[1729416962466,0.15366695,68453.0,68452.0,0.13167514]
[1729416966263,0.073046,68453.0,68452.0,0.13167514]
[1729416967161,0.15366656,68453.0,68452.0,0.13167514]
[1729416969470,0.073046,68453.0,68452.0,0.20467241]
[1729416969661,0.073046,68453.0,68452.0,0.31248301]
[1729416970962,0.073046,68453.0,68452.0,0.23948574]
[1729416971465,0.073046,68453.0,68452.0,0.13167514]
[1729416972660,0.073046,68453.0,68452.0,0.23951272]
[1729416973355,0.073046,68453.0,68452.0,0.20466007]
[1729416974186,0.3608,68457.0,68452.0,0.05862814]
[1729416974406,0.3608,68457.0,68456.0,0.073043]
[1729416974804,0.433842,68457.0,68456.0,0.29186536]
[1729416976384,0.51445952,68457.0,68456.0,0.29186536]
[1729416976593,0.46961744,68457.0,68456.0,0.29186536]
[1729416977603,0.50539383,68457.0,68456.0,0.29186536]
[1729416977796,0.65503373,68457.0,68456.0,0.29186536]
[1729416978996,0.65503373,68457.0,68456.0,0.20849979]
[1729416979412,0.65503373,68457.0,68456.0,0.28154279]
[1729416979610,0.58199173,68457.0,68456.0,1.31978279]
[1729416979926,0.69033711,68457.0,68456.0,1.31978279]
[1729416980130,0.60971745,68457.0,68456.0,1.31978279]
[1729416980627,0.60971745,68457.0,68456.0,1.34666177]
[1729416981324,0.32953326,68457.0,68456.0,1.34666177]
[1729416981525,0.32953326,68457.0,68456.0,0.30842177]
[1729416981824,0.24891745,68457.0,68456.0,0.30842177]
[1729416982830,0.32952646,68457.0,68456.0,0.30842177]
[1729416983323,0.08060901,68457.0,68456.0,0.30842177]
[1729416984419,0.04483735,68457.0,68456.0,0.41628197]
[1729416984828,0.04483735,68457.0,68456.0,0.30842177]
[1729416985803,0.04483735,68457.0,68456.0,0.41625901]
[1729416988526,0.04483735,68457.0,68456.0,0.41619874]
[1729416988920,0.04483735,68457.0,68456.0,0.30842177]
[1729416990013,0.04483735,68457.0,68456.0,0.41625224]
[1729416990900,0.04483735,68457.0,68456.0,0.77705224]
[1729416993401,0.073035,68463.0,68456.0,0.70400924]
[1729416993615,0.073035,68463.0,68461.0,0.1312849]
[1729416994008,0.073035,68463.0,68462.0,0.21917141]
[1729416998506,0.073035,68463.0,68462.0,0.27741699]
[1729416999398,0.15364198,68463.0,68460.0,0.08824]
[1729416999600,0.08060698,68462.0,68460.0,0.08824]
[1729416999798,0.08060698,68461.0,68460.0,0.161278]
[1729417000202,0.08060698,68461.0,68460.0,0.37941652]
[1729417002094,0.073035,68463.0,68460.0,0.30637852]
[1729417002300,0.073035,68463.0,68461.0,0.073037]